bitfinex-derivatives/quotes_SOLF0:USTF0_20250626
["timestamp","ask_amount","ask_price","bid_price","bid_amount"]
[1750929223630,5.77288731,144.16,144.11,6.9351]
[1750929224117,6.9342,144.14,144.11,6.9351]
[1750929224324,6.9342,144.14,144.13,8.63999205]
[1750929225326,5.77288731,144.16,144.13,15.57429205]
[1750929225526,10.50408731,144.18,144.15,8.63990069]
[1750929225730,10.50408731,144.18,144.17,6.48002609]
[1750929226330,6.9329,144.16,144.15,8.63990069]
[1750929227829,12.70578731,144.16,144.15,8.63990069]
[1750929228031,6.9334,144.15,144.14,8.63990069]
[1750929229240,5.77288731,144.15,144.13,8.63990069]
[1750929229535,10.59404187,144.17,144.14,8.63990069]
[1750929229736,5.77288731,144.17,144.16,2.995e-05]
[1750929229936,6.9339,144.14,144.13,8.63990069]
[1750929230339,6.9337,144.15,144.13,8.63990069]
[1750929230539,5.77288731,144.16,144.13,8.63990069]
[1750929230935,6.9334,144.15,144.13,8.63990069]
[1750929231337,5.77288731,144.16,144.13,8.63990069]
[1750929231531,6.9339,144.14,144.13,8.63990069]
[1750929231933,5.77316272,144.16,144.13,8.63990069]
[1750929232141,6.9338,144.15,144.14,8.63990069]
[1750929232338,5.77316272,144.16,144.13,8.63990069]
[1750929232836,6.9339,144.14,144.13,8.63990069]
[1750929233139,6.9339,144.14,144.12,8.63990069]
[1750929233336,8.22056272,144.17,144.12,8.63990069]
[1750929233544,13.04790612,144.17,144.13,8.63990069]
[1750929233736,13.04790612,144.17,144.12,8.63990069]
[1750929233938,6.9342,144.14,144.12,8.63990069]
[1750929234246,3.46418222,144.15,144.12,8.63990069]
[1750929234537,10.39758222,144.15,144.14,8.63990069]
[1750929234743,10.39758222,144.15,144.14,14.6415665]
[1750929235236,10.39758222,144.15,144.14,6.00166581]
[1750929237238,10.39758222,144.15,144.14,14.64361925]
[1750929237442,6.9334,144.15,144.14,4.12391925]
[1750929237740,6.9349,144.12,144.11,12.95998807]
[1750929237939,3.46418222,144.12,144.1,12.95998807]
[1750929238244,4.82731751,144.15,144.07,12.95998807]
[1750929238245,6.9363,144.09,144.07,12.95998807]
[1750929238439,6.9363,144.09,144.08,12.95998807]
[1750929238649,6.9371,144.08,144.06,68.01998807]
[1750929239041,6.9371,144.08,144.06,12.95998807]
[1750929239342,6.9373,144.07,144.05,12.95998807]
[1750929239843,3.46617659,144.07,144.05,12.95998807]
[1750929240043,3.46617659,144.07,144.04,12.95998807]
[1750929240248,5.78200336,144.05,144.03,12.95998807]
[1750929240451,5.78200336,144.05,144.0,4.5675]
[1750929240452,5.78200336,144.05,144.01,12.95998807]
[1750929240746,5.78200336,144.07,144.02,12.95998807]
[1750929240937,6.9388,144.04,144.01,19.89988807]
[1750929241145,5.78200336,144.05,144.0,12.95998807]
[1750929241345,5.78200336,144.03,144.0,12.95998807]
[1750929241539,5.78200336,144.06,143.97,7.9191612]
[1750929241943,6.9375,144.07,144.03,6.9388]
[1750929242143,5.78200336,144.08,143.99,2.4572]
[1750929242336,6.9383,144.05,144.02,6.9393]
[1750929242547,5.78200336,144.08,143.99,2.4572]
[1750929242944,5.78200336,144.07,143.99,2.4572]
[1750929243355,5.78200336,144.05,144.02,12.95777149]
[1750929243544,6.939,144.04,144.01,6.9401]
[1750929243744,5.78200336,144.05,144.0,12.95777149]
[1750929243945,6.939,144.04,144.0,6.9403]
[1750929244144,5.78200336,144.05,144.0,6.9403]
[1750929245047,5.78200336,144.03,143.97,7.9191612]
[1750929245653,5.78200336,144.06,143.97,7.9191612]
[1750929245954,55.6702,144.09,143.97,7.9191612]
[1750929245955,55.6702,144.09,144.01,12.93885036]
[1750929246137,5.78200336,144.08,144.01,12.93885036]
[1750929246646,6.937,144.08,144.02,12.93885036]
[1750929246842,57.22200336,144.1,144.03,12.93885036]
[1750929247042,5.78200336,144.06,144.02,12.93885036]
[1750929247350,5.78200336,144.06,144.0,51.44]
[1750929247544,6.9391,144.04,144.01,6.94]
[1750929247849,5.78200336,144.06,144.0,51.44]
[1750929248048,6.9396,144.03,144.0,58.3804]
[1750929248247,5.78200336,144.04,144.0,58.3804]
[1750929249044,5.78200336,144.04,144.01,6.9401]
[1750929249247,5.78200336,144.06,144.0,64.36656065]
[1750929249442,51.44,144.1,144.01,5.89158669]
[1750929249755,57.22200336,144.1,144.02,18.81814734]
[1750929250049,57.22200336,144.1,144.03,5.89158669]
[1750929250250,6.9372,144.08,144.04,5.89158669]
[1750929250448,6.9372,144.08,144.05,5.89158669]
[1750929250648,6.9372,144.08,144.02,12.92656065]
[1750929250649,6.9373,144.07,144.06,5.89158669]
[1750929251444,57.22200336,144.1,144.06,5.89158669]
[1750929251644,2.2725,144.11,144.06,5.89158669]
[1750929251854,5.78200336,144.09,144.02,2.3764]
[1750929252045,6.937,144.08,144.02,2.3764]
[1750929252351,5.78200336,144.1,144.04,6.9384]
[1750929252536,6.9373,144.07,144.04,6.9384]
[1750929252737,5.78200336,144.1,144.02,2.3764]
[1750929253046,6.9372,144.08,144.05,6.938]
[1750929253947,6.9372,144.08,144.02,2.3764]
[1750929253948,6.9372,144.08,144.06,6.9377]
[1750929254153,6.9372,144.08,144.07,5.84651741]
[1750929255752,6.9364,144.09,144.07,5.84651741]
[1750929255958,6.9364,144.09,144.08,5.84651741]
[1750929258055,6.9361,144.1,144.08,5.84651741]
[1750929258250,607.22320336,144.13,144.09,5.84651741]
[1750929258462,57.22200336,144.14,144.1,5.84651741]
[1750929258757,57.22200336,144.14,144.11,5.84651741]
[1750929259056,57.22200336,144.14,144.12,5.84651741]
[1750929259353,57.22200336,144.14,144.05,51.44]
[1750929259556,5.78200336,144.11,144.05,51.44]
[1750929259747,6.9366,144.09,144.05,51.44]
[1750929259948,6.9366,144.09,144.06,6.9376]
[1750929260457,6.9368,144.08,144.05,58.3781]
[1750929260956,6.9368,144.08,144.06,6.9377]
[1750929261261,5.78200336,144.11,144.06,6.9377]
[1750929261443,5.78200336,144.11,144.05,51.44]
[1750929261643,6.9371,144.08,144.05,58.3781]
[1750929262054,5.78200336,144.11,144.05,51.44]
[1750929262254,6.9365,144.09,144.06,6.9373]
[1750929262653,5.78200336,144.11,144.05,51.44]
[1750929262943,5.78200336,144.11,144.05,58.378]
[1750929263158,5.78200336,144.1,144.05,58.378]
[1750929263354,6.9372,144.08,144.05,58.378]
[1750929263560,5.78200336,144.1,144.04,6.9387]
[1750929263954,6.9375,144.07,144.04,6.9387]
[1750929264862,6.9378,144.06,144.03,9.241]
[1750929265055,6.9378,144.06,144.03,2.302]
[1750929265254,5.78200336,144.08,144.03,2.302]
[1750929265560,6.9375,144.07,144.04,6.9383]
[1750929265961,5.78200336,144.08,144.03,2.302]
[1750929266559,51.44,144.14,144.04,6.9385]
[1750929266857,5.78200336,144.09,144.04,6.9385]
[1750929267560,6.9377,144.07,144.04,6.9385]
[1750929268361,6.937,144.08,144.05,6.9381]
[1750929268750,5.78200336,144.11,144.05,6.9381]
[1750929269959,5.78200336,144.11,144.06,6.9377]
[1750929270151,5.78200336,144.1,144.06,6.9377]
[1750929270346,51.44,144.14,144.04,8.6086114]
[1750929270547,5.78200336,144.1,144.05,8.6086114]
[1750929270753,5.78200336,144.1,144.03,2.302]
[1750929270754,6.9366,144.09,144.04,8.6086114]
[1750929270952,5.78200336,144.1,144.04,8.6086114]
[1750929271353,6.9368,144.08,144.04,8.6086114]
[1750929271650,6.9368,144.08,144.05,15.5464114]
[1750929272461,6.9366,144.09,144.06,6.9377]
[1750929273264,6.9366,144.09,144.07,6.9372]
[1750929273662,6.9366,144.09,144.05,8.6086114]
[1750929273857,6.9366,144.09,144.07,8.6086114]
[1750929274048,6.936,144.1,144.07,8.6086114]
[1750929274362,6.936,144.1,144.07,15.5456114]
[1750929274665,5.78200336,144.11,144.07,8.6086114]
[1750929274854,49.7,144.14,144.07,8.6086114]
[1750929275156,6.9354,144.11,144.06,8.6086114]
[1750929275360,6.9354,144.11,144.09,6.9361]
[1750929275561,6.9351,144.12,144.1,5.85682001]
[1750929275757,6.9351,144.12,144.11,5.85682001]
[1750929275969,55.48200336,144.14,144.11,12.79212001]
[1750929276259,6.9348,144.13,144.12,5.85682001]
[1750929276960,6.9341,144.14,144.12,5.85682001]
[1750929277156,6.9341,144.14,144.13,5.85682001]
[1750929277549,12.71610336,144.14,144.13,5.85682001]
[1750929281962,6.9341,144.14,144.13,5.85682001]
[1750929285056,10.39814202,144.14,144.13,5.85682001]
[1750929289867,6.9341,144.14,144.13,12.32299274]
[1750929290172,10.39814202,144.14,144.13,12.32299274]
[1750929293471,3.46404202,144.14,144.13,12.32299274]
[1750929293675,4.6009,144.17,144.13,5.85682001]
[1750929293974,10.39694202,144.16,144.15,6.46550133]
[1750929294276,10.39694202,144.16,144.15,12.32232134]
[1750929294772,6.9339,144.14,144.13,8.6086114]
[1750929294965,6.9339,144.14,144.08,2.3091]
[1750929294966,3.46404202,144.14,144.11,8.6086114]
[1750929295166,3.46404202,144.12,144.11,8.6086114]
[1750929295367,3.46404202,144.12,144.09,8.6086114]
[1750929295568,3.46404202,144.1,144.08,8.6086114]
[1750929296167,47.8,144.14,144.08,8.6086114]
[1750929296365,3.46404202,144.11,144.09,8.6086114]
[1750929296574,3.46404202,144.12,144.08,8.6086114]
[1750929297173,6.9361,144.1,144.08,8.6086114]
[1750929298478,6.9363,144.09,144.08,8.6086114]
[1750929298778,3.46404202,144.11,144.08,8.6086114]
[1750929298979,10.39984202,144.11,144.08,15.5454114]
[1750929299183,3.46404202,144.11,144.08,8.6086114]
[1750929299572,47.8,144.14,144.08,8.6086114]
[1750929299773,3.46404202,144.13,144.11,8.6086114]
[1750929300173,3.46404202,144.13,144.1,8.6086114]
[1750929300381,3.46404202,144.13,144.11,8.6086114]
[1750929300686,10.39864202,144.13,144.11,8.6086114]
[1750929300889,3.46404202,144.13,144.11,8.6086114]
[1750929301179,3.46404202,144.13,144.09,8.6086114]
[1750929301380,6.9362,144.1,144.05,3.46404202]
[1750929301584,47.8,144.14,144.05,3.46404202]
[1750929301783,3.46404202,144.13,144.04,2.4457]
[1750929301972,3.46404202,144.13,144.06,3.46404202]
[1750929302179,47.8,144.14,144.08,3.46404202]
[1750929302485,6.9341,144.14,144.09,52.5572]
[1750929302674,3.46404202,144.15,144.09,52.5572]
[1750929302873,3.46404202,144.16,144.09,52.5572]
[1750929303080,6.9337,144.15,144.09,52.5572]
[1750929304290,10.39714202,144.16,144.13,6.9341]
[1750929304585,3.46404202,144.16,144.13,6.9341]
[1750929305589,3.46404202,144.16,144.13,15.55916494]
[1750929305776,6.9334,144.15,144.14,8.62506494]
[1750929306087,51.28404202,144.18,144.14,8.62506494]
[1750929306280,6.9326,144.17,144.13,8.62506494]
[1750929306485,3.46404202,144.19,144.13,8.62506494]
[1750929306787,3.46404202,144.19,144.14,8.62506494]
[1750929306977,6.9322,144.18,144.16,6.9329]
[1750929307186,174.45171338,144.21,144.17,5.82303891]
[1750929307494,174.45171338,144.21,144.18,5.82303891]
[1750929307495,124.86767136,144.21,144.18,5.82303891]
[1750929307779,124.86767136,144.21,144.19,12.75423891]
[1750929307981,124.86767136,144.21,144.2,5.82303891]
[1750929308585,6.9303,144.22,144.2,5.82303891]
[1750929308781,6.9303,144.22,144.21,5.82303891]
[1750929309290,3.46404202,144.24,144.17,54.74506494]
[1750929309488,3.46404202,144.24,144.2,6.9309]
[1750929309792,6.9301,144.22,144.2,6.9309]
[1750929309991,3.46404202,144.24,144.2,6.9309]
[1750929310194,6.9293,144.24,144.21,6.9302]
[1750929311085,6.9296,144.23,144.2,6.9309]
[1750929311585,3.46404202,144.25,144.18,12.08910696]
[1750929312295,6.9299,144.23,144.2,6.9308]
[1750929312788,3.46404202,144.25,144.18,3.46404202]
[1750929312991,3.46404202,144.25,144.17,54.74506494]
[1750929313384,6.9304,144.22,144.17,54.74506494]
[1750929314186,6.9304,144.22,144.19,6.9312]
[1750929314391,3.46404202,144.24,144.17,54.74506494]
[1750929314586,3.46404202,144.24,144.2,6.9309]
[1750929314779,6.9303,144.22,144.17,54.74506494]
[1750929315193,6.9303,144.22,144.19,6.9312]
[1750929315992,6.9303,144.22,144.2,6.9309]
[1750929316595,6.9298,144.23,144.2,6.9309]
[1750929317094,6.9298,144.23,144.21,6.9305]
[1750929317392,46.12,144.29,144.2,3.46404202]
[1750929317589,46.12,144.29,144.22,6.9298]
[1750929317590,3.46404202,144.28,144.22,6.9298]
[1750929317793,3.46404202,144.26,144.21,50.7592]
[1750929317987,3.46404202,144.24,144.21,46.1]
[1750929318382,46.12,144.29,144.19,8.62506494]
[1750929318383,3.46404202,144.26,144.19,8.62506494]
[1750929318590,46.12,144.29,144.2,3.46404202]
[1750929318789,3.46404202,144.27,144.21,54.72506494]
[1750929319191,6.9284,144.26,144.23,6.9293]
[1750929319391,3.46404202,144.27,144.21,54.72506494]
[1750929319794,10.39194202,144.27,144.24,6.9289]
[1750929320700,6.9282,144.26,144.23,6.9292]
[1750929320897,6.9282,144.26,144.21,54.72506494]
[1750929320898,3.46404202,144.27,144.21,54.72506494]
[1750929321697,6.9278,144.27,144.24,6.9287]
[1750929321896,3.46404202,144.29,144.22,2.3677]
[1750929322095,3.46404202,144.29,144.23,8.62506494]
[1750929322290,10.39094202,144.29,144.26,6.9279]
[1750929322702,3.46404202,144.29,144.26,6.9279]
[1750929323196,6.9269,144.29,144.26,6.9279]
[1750929323599,49.54404202,144.31,144.27,6.9276]
[1750929323893,3.46404202,144.34,144.27,3.46404202]
[1750929324095,3.46404202,144.32,144.25,58.16910696]
[1750929324288,53.1737,144.37,144.22,2.3677]
[1750929324289,3.46404202,144.3,144.24,8.62506494]
[1750929324494,3.46404202,144.3,144.26,6.9281]
[1750929324796,3.46404202,144.32,144.24,3.46404202]
[1750929325098,3.46404202,144.33,144.31,6.9257]
[1750929325302,3.46404202,144.33,144.27,46.08]
[1750929325491,6.9247,144.34,144.27,48.5535]
[1750929325687,10.38874202,144.34,144.28,2.2605]
[1750929326002,6.9251,144.33,144.28,2.2605]
[1750929326196,3.46404202,144.35,144.28,2.2605]
[1750929326388,3.46404202,144.35,144.28,5.72454202]
[1750929326893,3.46404202,144.35,144.3,6.926]
[1750929327291,3.46404202,144.33,144.28,2.2605]
[1750929327796,48.4419,144.37,144.28,2.2605]
[1750929327797,3.46404202,144.35,144.28,2.2605]
[1750929327998,3.46404202,144.35,144.3,6.926]
[1750929328601,6.925,144.33,144.3,6.926]
[1750929329503,6.925,144.33,144.28,2.2605]
[1750929329801,3.46404202,144.35,144.28,2.2605]
[1750929330195,2.3852,144.38,144.29,3.46404202]
[1750929330394,3.46404202,144.37,144.29,3.46404202]
[1750929330593,3.46404202,144.37,144.31,6.9256]
[1750929331299,6.9247,144.34,144.31,6.9256]
[1750929332307,6.924,144.35,144.32,6.9252]
[1750929332601,3.46404202,144.37,144.28,5.72454202]
[1750929332903,6.9244,144.34,144.31,6.9255]
[1750929333397,4.8338,144.39,144.28,5.72454202]
[1750929333603,3.46404202,144.38,144.3,3.46404202]
[1750929333901,3.46404202,144.38,144.31,44.38]
[1750929334104,6.9234,144.36,144.31,44.38]
[1750929334490,6.9234,144.36,144.32,6.9248]
[1750929334892,6.9234,144.36,144.31,44.38]
[1750929335105,6.9234,144.36,144.33,6.9245]
[1750929336605,6.924,144.35,144.32,6.925]
[1750929337097,6.924,144.35,144.31,44.38]
[1750929337302,6.9236,144.36,144.31,44.38]
[1750929337602,3.46404202,144.39,144.33,3.46404202]
[1750929338397,10.38624202,144.39,144.36,6.9232]
[1750929338597,3.46404202,144.39,144.33,3.46404202]
[1750929338799,6.9228,144.38,144.35,6.9235]
[1750929338999,3.46404202,144.39,144.35,6.9235]
[1750929339603,6.9227,144.38,144.35,6.9235]
[1750929339814,3.46404202,144.4,144.33,3.46404202]
[1750929340403,3.46404202,144.4,144.37,6.9226]
[1750929341110,3.46404202,144.4,144.33,3.46404202]
[1750929341312,49.1581,144.43,144.33,3.46404202]
[1750929341609,49.1581,144.43,144.36,6.9233]
[1750929341610,6.9227,144.38,144.36,6.9233]
[1750929342311,6.9227,144.38,144.35,6.9236]
[1750929342512,6.9229,144.37,144.32,3.46404202]
[1750929342709,3.46404202,144.37,144.31,44.38]
[1750929343015,6.9256,144.32,144.28,2.2605]
[1750929343213,3.46404202,144.33,144.28,2.2605]
[1750929343512,3.46404202,144.3,144.25,93.47178376]
[1750929343712,3.46404202,144.3,144.24,44.36]
[1750929343915,3.46404202,144.28,144.25,6.9284]
[1750929344610,10.39164202,144.28,144.24,51.2889]
[1750929344915,6.9276,144.28,144.24,51.2889]
[1750929345102,10.39094202,144.29,144.25,6.9285]
[1750929345514,3.46404202,144.29,144.25,6.9285]
[1750929345705,6.9272,144.28,144.25,6.9285]
[1750929347012,10.39174202,144.27,144.24,6.9287]
[1750929347217,10.39174202,144.27,144.21,10.80669389]
[1750929347218,3.46404202,144.27,144.21,46.6433]
[1750929347608,10.39194202,144.27,144.24,6.9289]
[1750929348218,10.39304202,144.25,144.21,51.3103]
[1750929348521,3.46404202,144.25,144.21,44.38]
[1750929348906,3.46404202,144.25,144.23,6.9294]
[1750929349218,3.46404202,144.27,144.21,44.38]
[1750929350720,3.46404202,144.27,144.26,6.9281]
[1750929351220,3.46404202,144.27,144.21,44.38]
[1750929351519,3.46404202,144.26,144.21,44.38]
[1750929351722,10.39254202,144.26,144.21,44.38]
[1750929352215,3.46404202,144.26,144.21,44.38]
[1750929352422,5.73054202,144.28,144.21,44.38]
[1750929352916,6.9277,144.27,144.24,6.9288]
[1750929353515,6.9277,144.27,144.22,8.54339389]
[1750929353716,5.73054202,144.28,144.23,8.54339389]
[1750929353717,6.9283,144.26,144.23,8.54339389]
[1750929353913,5.73054202,144.28,144.24,6.929]
[1750929354319,5.73054202,144.28,144.23,8.54339389]
[1750929354521,3.46404202,144.28,144.25,6.9284]
[1750929354821,10.39144202,144.28,144.25,13.3566264]
[1750929355124,10.39144202,144.28,144.26,6.4282264]
[1750929355322,3.46404202,144.28,144.26,13.3563264]
[1750929355523,5.91314202,144.3,144.26,6.4282264]
[1750929355725,5.91314202,144.3,144.27,6.4282264]
[1750929356021,3.46404202,144.28,144.27,6.4282264]
[1750929356223,3.46404202,144.28,144.26,6.4282264]
[1750929356421,6.9277,144.27,144.26,6.4282264]
[1750929356617,3.46404202,144.28,144.25,6.4282264]
[1750929357222,6.9277,144.27,144.25,6.4282264]
[1750929357417,3.46404202,144.28,144.25,6.4282264]
[1750929357613,6.9281,144.26,144.25,6.4282264]
[1750929358126,10.39214202,144.26,144.25,6.4282264]
[1750929358714,3.46404202,144.26,144.22,8.54339389]
[1750929358919,3.46404202,144.26,144.18,51.03524202]
[1750929359712,3.46404202,144.26,144.19,42.74]
[1750929359914,6.9289,144.25,144.21,6.9301]
[1750929360314,6.9289,144.25,144.22,6.93]
[1750929360517,10.39244202,144.26,144.19,42.74]
[1750929361125,6.9284,144.26,144.23,6.9294]
[1750929361827,6.9278,144.27,144.2,3.46404202]
[1750929363228,6.9282,144.26,144.2,3.46404202]
[1750929363527,3.46404202,144.26,144.21,6.9303]
[1750929363730,6.9295,144.24,144.21,6.9303]
[1750929363928,3.46404202,144.24,144.18,4.8312]
[1750929364133,3.46404202,144.24,144.2,6.9307]
[1750929364328,2.2578,144.27,144.18,4.8312]
[1750929364329,3.46404202,144.26,144.23,6.4359722]
[1750929364731,6.9289,144.25,144.23,6.4359722]
[1750929365233,6.9289,144.25,144.23,13.3654722]
[1750929365830,6.9289,144.25,144.23,6.4359722]
[1750929366427,6.9292,144.24,144.22,13.3655722]
[1750929366824,6.9292,144.24,144.21,13.3663722]
[1750929367020,3.46404202,144.24,144.21,6.4359722]
[1750929367533,6.93,144.23,144.2,13.3668722]
[1750929367721,3.46404202,144.24,144.2,6.4359722]
[1750929367925,3.46404202,144.26,144.22,6.93]
[1750929368229,6.9289,144.25,144.22,6.93]
[1750929369028,2.2578,144.27,144.2,9.90001422]
[1750929369233,46.20404202,144.28,144.22,6.4359722]
[1750929369527,10.39144202,144.28,144.25,6.9282]
[1750929370026,3.46404202,144.28,144.25,6.9282]
[1750929370430,42.76,144.31,144.24,6.4359722]
[1750929370630,3.46404202,144.3,144.25,6.4359722]
[1750929370825,6.9271,144.29,144.25,6.4359722]
[1750929371022,3.46404202,144.3,144.25,6.4359722]
[1750929371223,3.46404202,144.28,144.23,8.8284722]
[1750929371428,3.46404202,144.28,144.24,6.4359722]
[1750929371731,3.46404202,144.3,144.23,5.85654202]
[1750929372131,3.46404202,144.3,144.26,6.9279]
[1750929372634,6.927,144.29,144.26,6.9279]
[1750929373233,3.46404202,144.3,144.27,6.9276]
[1750929373234,10.39044202,144.3,144.27,6.9276]
[1750929374132,10.39044202,144.3,144.28,6.9272]
[1750929374337,6.9267,144.29,144.23,5.85654202]
[1750929374536,3.46404202,144.3,144.23,5.85654202]
[1750929375039,3.46404202,144.3,144.27,6.9273]
[1750929375040,10.39054202,144.3,144.27,6.9273]
[1750929375336,6.9265,144.3,144.26,6.42813824]
[1750929375535,3.46404202,144.32,144.26,6.42813824]
[1750929375735,6.9262,144.31,144.26,6.42813824]
[1750929377033,6.9262,144.31,144.29,6.9264]
[1750929377233,10.38954202,144.32,144.27,6.42813824]
[1750929377538,3.46404202,144.37,144.29,3.46404202]
[1750929377738,6.9243,144.34,144.3,6.42813824]
[1750929378036,45.0944,144.39,144.3,6.42813824]
[1750929378242,45.0944,144.39,144.31,3.46404202]
[1750929378436,3.46404202,144.4,144.33,9.89218026]
[1750929378748,10.38574202,144.4,144.33,46.20404202]
[1750929379545,10.38574202,144.4,144.37,6.9226]
[1750929379845,42.74,144.42,144.33,46.20404202]
[1750929379846,3.46404202,144.41,144.33,46.20404202]
[1750929380234,6.9225,144.38,144.33,46.20404202]
[1750929380430,6.9225,144.38,144.34,6.42850928]
[1750929380839,6.923,144.37,144.35,6.9236]
[1750929381145,3.46404202,144.41,144.35,6.9236]
[1750929381346,3.46404202,144.41,144.34,6.42850928]
[1750929381843,6.9217,144.4,144.34,6.42850928]
[1750929382242,3.46404202,144.41,144.34,6.42850928]
[1750929382543,3.46404202,144.41,144.35,3.46404202]
[1750929382741,3.46404202,144.41,144.35,9.8925513]
[1750929382940,6.9217,144.4,144.37,6.9226]
[1750929383143,3.46404202,144.41,144.37,6.9226]
[1750929383538,6.9217,144.4,144.37,6.9226]
[1750929384342,6.9212,144.41,144.38,6.9223]
[1750929384644,3.46404202,144.42,144.35,9.8925513]
[1750929385246,197.01863829,144.44,144.36,6.42850928]
[1750929385441,197.01863829,144.44,144.37,42.6]
[1750929385747,197.01863829,144.44,144.38,6.42850928]
[1750929385944,197.01863829,144.44,144.37,49.02850928]
[1750929386145,197.01863829,144.44,144.39,6.9219]
[1750929387043,193.55459627,144.44,144.39,6.9219]
[1750929387348,6.9207,144.42,144.39,6.9219]
[1750929387743,6.9207,144.42,144.38,6.42850928]
[1750929388146,6.9207,144.42,144.4,6.9212]
[1750929388447,6.9207,144.42,144.38,6.42850928]
[1750929388647,42.6,144.48,144.41,6.9207]
[1750929388838,3.46404202,144.46,144.39,6.42850928]
[1750929389441,6.9197,144.44,144.4,6.9214]
[1750929389844,6.9197,144.44,144.38,6.42850928]
[1750929390045,6.9197,144.44,144.41,6.9208]
[1750929390347,6.9197,144.44,144.38,6.42850928]
[1750929390348,6.92,144.43,144.38,6.42850928]
[1750929390549,3.46404202,144.44,144.4,6.9214]
[1750929391245,3.46404202,144.44,144.41,6.9209]
[1750929392251,6.9198,144.44,144.41,6.9209]
[1750929392551,3.46404202,144.45,144.41,6.9209]
[1750929393051,6.9198,144.44,144.41,6.9209]
[1750929393952,3.46404202,144.45,144.4,6.9212]
[1750929394155,3.46404202,144.45,144.37,59.5986513]
[1750929394449,3.46404202,144.45,144.41,6.9207]
[1750929394450,6.9197,144.44,144.41,6.9207]
[1750929394644,42.6,144.48,144.38,9.8925513]
[1750929394845,6.9192,144.45,144.43,6.9199]
[1750929395046,3.46404202,144.46,144.43,6.9199]
[1750929395256,42.6,144.48,144.41,42.6]
[1750929395956,6.9188,144.46,144.44,6.9195]
[1750929396156,6.9188,144.46,144.41,42.6]
[1750929396449,6.9188,144.46,144.39,6.42850928]
[1750929396450,6.9206,144.42,144.39,6.9217]
[1750929396657,3.46404202,144.43,144.37,7.1061]
[1750929396950,10.38394202,144.44,144.41,6.9208]
[1750929398252,10.38394202,144.44,144.42,6.9204]
[1750929398453,10.38334202,144.45,144.42,6.9204]
[1750929399456,42.6,144.48,144.43,6.9199]
[1750929399457,6.9186,144.46,144.43,6.9199]
[1750929400654,3.46404202,144.47,144.42,6.9202]
[1750929400655,6.919,144.45,144.42,6.9202]
[1750929400849,3.46404202,144.45,144.4,42.58]
[1750929401451,10.38324202,144.45,144.42,6.9203]
[1750929401758,42.6,144.48,144.4,42.58]
[1750929401945,6.9194,144.45,144.42,6.9202]
[1750929403260,6.9188,144.46,144.43,6.9197]
[1750929403564,3.46404202,144.47,144.4,42.58]
[1750929403761,6.9194,144.45,144.42,6.9202]
[1750929406263,3.46404202,144.43,144.39,6.42850928]
[1750929406865,6.9207,144.42,144.39,13.35030928]
[1750929407067,6.9207,144.42,144.39,6.42850928]
[1750929407568,10.38424202,144.43,144.4,6.9213]
[1750929407864,3.46404202,144.45,144.39,6.42850928]
[1750929408062,3.46404202,144.45,144.41,6.9205]
[1750929408261,3.46404202,144.46,144.4,6.42850928]
[1750929408468,10.38274202,144.46,144.43,6.9197]
[1750929408661,10.38274202,144.46,144.4,6.42850928]
[1750929409057,6.9187,144.46,144.43,6.9196]
[1750929409463,6.9187,144.46,144.41,49.00850928]
[1750929409663,6.919,144.45,144.41,49.00850928]
[1750929410174,6.9187,144.46,144.43,6.9196]
[1750929410373,3.46404202,144.47,144.43,6.9196]
[1750929410674,6.9189,144.46,144.43,6.9196]
[1750929412566,6.9191,144.45,144.43,6.9196]
[1750929413867,6.9196,144.44,144.42,13.34880928]
[1750929414373,6.9196,144.44,144.43,6.42850928]
[1750929415175,6.9192,144.45,144.43,6.42850928]
[1750929415874,6.9195,144.44,144.43,6.42850928]
[1750929416078,10.38354202,144.44,144.43,6.42850928]
[1750929416372,6.92,144.43,144.42,8.57134571]
[1750929416568,3.46404202,144.44,144.41,8.57134571]
[1750929416771,3.46404202,144.44,144.43,6.4279079]
[1750929417167,10.38374202,144.44,144.43,6.4279079]
[1750929417880,10.38374202,144.44,144.42,6.4279079]
[1750929418069,6.92,144.43,144.42,6.4279079]
[1750929418677,6.9205,144.42,144.41,6.4279079]
[1750929419179,6.9202,144.43,144.41,6.4279079]
[1750929420376,6.9202,144.43,144.4,13.3491079]
[1750929420573,10.38454202,144.42,144.4,6.4279079]
[1750929420777,3.46404202,144.42,144.39,6.4279079]